Workbook

Sheet ディスク容量計算
F3: 作成 | G3: 2022年4月 MESW
B5: 本ファイルは、収集データの保存に必要なディスク容量（目安）を計算するためのファイルです。
B6: 入力セルにデータ収集条件を入力することで、必要なディスク容量（目安）を表示します。
C9: 【データ収集条件】
D10: 項目 | E10: 値
D11: 収集点数 （ワード点数）※1 | E11: 1024 | G11: 入力セル
D12: 収集周期 （msec） | E12: 100
D13: 保存日数 （日） | E13: 30
D14: ※1 ワード単位の点数を入力してください。
D15: ビットデバイスは１点、ダブルワードは２点として入力してください。
C17: 【必要なディスク容量】
D18: 項目 | E18: 容量（GB） | F18: 容量（TB）
D19: 必要なディスク容量 | E19: =マスタ!H11*E13 -> 18.54140625 | F19: =E19/1024 -> 0.01810684204
C21: 【必要なディスク容量（収集周期毎）】
D22: 収集周期 (msec) | E22: 1日分の容量(GB) | F22: =E13 -> 30 | G22: （TB）
D23: 1 | E23: =(マスタ!C7*マスタ!$H$9)/1024 -> 61.8046875 | F23: =(E23*$E$13) -> 1854.140625 | G23: =F23/1024 -> 1.810684204
D24: 5 | E24: =(マスタ!C8*マスタ!$H$9)/1024 -> 12.3609375 | F24: =(E24*$E$13) -> 370.828125 | G24: =F24/1024 -> 0.3621368408
D25: 10 | E25: =(マスタ!C9*マスタ!$H$9)/1024 -> 6.18046875 | F25: 185.4140625 | G25: =F25/1024 -> 0.1810684204
D26: 20 | E26: =(マスタ!C10*マスタ!$H$9)/1024 -> 3.090234375 | F26: 92.70703125 | G26: =F26/1024 -> 0.09053421021
D27: 50 | E27: =(マスタ!C11*マスタ!$H$9)/1024 -> 1.23609375 | F27: 37.0828125 | G27: 0.03621368408
D28: 100 | E28: =(マスタ!C12*マスタ!$H$9)/1024 -> 0.618046875 | F28: 18.54140625 | G28: 0.01810684204
D29: 200 | E29: =(マスタ!C13*マスタ!$H$9)/1024 -> 0.3090234375 | F29: 9.270703125 | G29: 0.009053421021
D30: 500 | E30: =(マスタ!C14*マスタ!$H$9)/1024 -> 0.123609375 | F30: 3.70828125 | G30: 0.003621368408
D31: 1000 | E31: =(マスタ!C15*マスタ!$H$9)/1024 -> 0.0618046875 | F31: =(E31*$E$13) -> 1.854140625 | G31: =F31/1024 -> 0.001810684204
D32: 2000 | E32: =(マスタ!C16*マスタ!$H$9)/1024 -> 0.03090234375 | F32: 0.9270703125 | G32: 0.0009053421021
D33: 5000 | E33: =(マスタ!C17*マスタ!$H$9)/1024 -> 0.0123609375 | F33: =(E33*$E$13) -> 0.370828125 | G33: =F33/1024 -> 0.0003621368408
D34: 10000 | E34: =(マスタ!C18*マスタ!$H$9)/1024 -> 0.00618046875 | F34: 0.1854140625 | G34: 0.0001810684204
D35: 20000 | E35: =(マスタ!C19*マスタ!$H$9)/1024 -> 0.003090234375 | F35: 0.09270703125 | G35: 9.053421021e-05
D36: 30000 | E36: =(マスタ!C20*マスタ!$H$9)/1024 -> 0.00206015625 | F36: =(E36*$E$13) -> 0.0618046875 | G36: =F36/1024 -> 6.035614014e-05
D37: 60000 | E37: =(マスタ!C21*マスタ!$H$9)/1024 -> 0.001030078125 | F37: 0.03090234375 | G37: 3.017807007e-05

Sheet マスタ (hidden)
H1: (社外秘)
B4: ■収集周期と蓄積ファイル数 | E4: ■Windowsファイル圧縮 | G4: ■収集データ容量計算式
B6: 収集周期（ms） | C6: 1日分のファイル数 | E6: 圧縮係数 | H6: HR
B7: 1 | C7: =((24*60*60)/(0.001*B7))/10000 -> 8640 | E7: 0.2 | G7: グループ数 | H7: 64
B8: 5 | C8: =((24*60*60)/(0.001*B8))/10000 -> 1728 | E8: ※値変化少= | F8: 0.15 | G8: 1ﾌｧｲﾙｻｲｽﾞ(MB) | H8: =((ディスク容量計算!E11/H7*2+28)*10000+64)/1024/1024*H7 -> 36.625
B9: 10 | C9: 864 | E9: ※値変化多= | F9: 0.35 | G9: 圧縮後(MB) | H9: =H8*マスタ!$E$7 -> 7.325
B10: 20 | C10: 432 | G10: 1日分のﾌｧｲﾙ数 | H10: =((24*60*60)/(0.001*ディスク容量計算!E12))/10000 -> 86.4
B11: 50 | C11: 172.8 | G11: 1日分の容量(GB) | H11: =H10*H9/1024 -> 0.618046875
B12: 100 | C12: 86.4
B13: 200 | C13: 43.2
B14: 500 | C14: 17.28
B15: 1000 | C15: 8.64
B16: 2000 | C16: 4.32
B17: 5000 | C17: 1.728
B18: 10000 | C18: =((24*60*60)/(0.001*B18))/10000 -> 0.864
B19: 20000 | C19: 0.432
B20: 30000 | C20: 0.288
B21: 60000 | C21: =((24*60*60)/(0.001*B21))/10000 -> 0.144
